fUSD/lending_fUSD_20251019
["ID","MTS","AMOUNT","RATE_DAILY","PERIOD"]
[391836746,1760899840760,-505.68160399,0.00032876,8]
[391836747,1760899840769,-614.89147569,0.00032876,8]
[391836748,1760899840781,-500.0,0.00032876,8]
[391836749,1760899840792,-500.0,0.00032876,8]
[391836750,1760899840805,-515.4970286,0.00032876,8]
[391836751,1760899840815,-500.0,0.00032876,8]
[391836752,1760899840826,-151.0,0.00032876,30]
[391836753,1760899840836,-284.057623,0.00032876,30]
[391836754,1760899840846,-508.99,0.00032876,8]
[391836755,1760899840855,-598.49215994,0.00032876,8]
[391836756,1760899840865,-576.15,0.00032876,8]
[391836757,1760899840876,-642.84892826,0.00032876,8]
[391836758,1760899840885,-500.0,0.00032876,8]
[391836759,1760899840895,-500.0,0.00032876,8]
[391836760,1760899840905,-500.0,0.00032876,8]
[391836761,1760899840916,-512.15775488,0.00032876,8]
[391836762,1760899840927,-151.0,0.00032876,30]
[391836763,1760899840937,-151.0,0.00032876,30]
[391836764,1760899840948,-151.0,0.00032876,30]
[391836765,1760899840959,-500.0,0.00032876,8]
[391836766,1760899840969,-979.09,0.00032876,8]
[391836767,1760899840979,-500.0,0.00032876,8]
[391836768,1760899840991,-500.0,0.00032876,8]
[391836769,1760899841002,-441.9494,0.00032876,8]
[391836770,1760899841012,-503.60702013,0.00032876,8]
[391836771,1760899841023,-500.0,0.00032876,8]
[391836772,1760899841034,-500.0,0.00032876,8]
[391836773,1760899841045,-500.0,0.00032876,8]
[391836774,1760899841056,-500.0,0.00032876,8]
[391836775,1760899841067,-531.27181494,0.00032876,8]
[391836776,1760899841078,-500.0,0.00032876,8]
[391836777,1760899841088,-500.0,0.00032876,8]
[391836778,1760899841098,-500.0,0.00032876,8]
[391836779,1760899841108,-488.61000156,0.00032876,8]
[391836780,1760899841118,-500.0,0.00032876,8]
[391836781,1760899841128,-507.40462732,0.00032876,8]
[391836782,1760899841139,-503.07335807,0.00032876,8]
[391836783,1760899841149,-503.12380411,0.00032876,8]
[391836784,1760899841159,-500.0,0.00032876,8]
[391836785,1760899841172,-629.07,0.00032876,8]
[391836786,1760899841182,-500.0,0.00032876,8]
[391836787,1760899841192,-524.18845888,0.00032876,8]
[391836788,1760899841203,-425.88549289,0.00032876,8]
[391836789,1760899841213,-500.0,0.00032876,8]
[391836790,1760899841223,-512.25391274,0.00032876,8]
[391836791,1760899841234,-504.10517643,0.00032876,8]
[391836792,1760899841244,-352.30457068,0.00032876,8]
[391836793,1760899841254,-500.0,0.00032876,8]
[391836794,1760899841264,-504.56621189,0.00032876,8]
[391836795,1760899841276,-500.0,0.00032876,8]
[391836796,1760899841287,-500.0,0.00032876,8]
[391836797,1760899841302,-500.0,0.00032876,8]
[391836798,1760899841313,-504.74180514,0.00032876,8]
[391836799,1760899841323,-500.0,0.00032876,8]
[391836800,1760899841333,-497.04190109,0.00032876,8]
[391836801,1760899841343,-500.0,0.00032876,8]
[391836802,1760899841354,-500.0,0.00032876,8]
[391836803,1760899841363,-503.41152247,0.00032876,8]
[391836804,1760899841374,-500.0,0.00032876,8]
[391836805,1760899841385,-500.0,0.00032876,8]
[391836806,1760899841395,-1000.0,0.00032876,8]
[391836807,1760899841405,-500.0,0.00032876,8]
[391836808,1760899841416,-500.0,0.00032876,8]
[391836809,1760899841426,-605.48347485,0.00032876,8]
[391836810,1760899841436,-388.0074006,0.00032876,8]
[391836811,1760899841447,-500.0,0.00032876,8]
[391836812,1760899841456,-500.0,0.00032876,8]
[391836813,1760899841466,-500.0,0.00032876,8]
[391836814,1760899841476,-500.0,0.00032876,8]
[391836815,1760899841486,-500.0,0.00032876,8]
[391836816,1760899841496,-500.0,0.00032876,8]
[391836817,1760899841506,-500.0,0.00032876,8]
[391836818,1760899841516,-500.0,0.00032876,8]
[391836819,1760899841526,-423.05213784,0.00032876,8]
[391836820,1760899841536,-500.19124695,0.00032876,8]
[391836821,1760899841545,-500.0,0.00032876,8]
[391836822,1760899841554,-505.51277189,0.00032876,8]
[391836823,1760899841564,-500.0,0.00032876,8]
[391836824,1760899841575,-500.0,0.00032876,8]
[391836825,1760899841585,-500.0,0.00032876,8]
[391836826,1760899841596,-500.0,0.00032876,8]
[391836827,1760899841608,-516.83680891,0.00032876,8]
[391836828,1760899841618,-500.0,0.00032876,8]
[391836829,1760899841628,-559.79371094,0.00032876,8]
[391836830,1760899841638,-510.61656953,0.00032876,8]
[391836831,1760899841649,-545.83,0.00032876,8]
[391836832,1760899841660,-500.0,0.00032876,8]
[391836833,1760899841670,-500.0,0.00032876,8]
[391836834,1760899841682,-503.06290538,0.00032876,8]
[391836835,1760899841805,-581.9149375,0.00032876,8]
[391836836,1760899841816,-500.0,0.00032876,8]
[391836837,1760899841826,-502.45670729,0.00032876,8]
[391836838,1760899841836,-500.0,0.00032876,8]
[391836839,1760899841847,-500.0,0.00032876,8]
[391836840,1760899841857,-502.81976567,0.00032876,8]
[391836841,1760899841868,-516.0756545,0.00032876,8]
[391836842,1760899841879,-500.0,0.00032876,8]
[391836843,1760899841890,-151.0,0.00032876,30]
[391836844,1760899841899,-517.03681859,0.00032876,8]
[391836845,1760899841908,-151.0,0.00032876,30]
[391836846,1760899841918,-500.0,0.00032876,8]
[391836847,1760899841927,-500.0,0.00032876,8]
[391836848,1760899841936,-523.33275349,0.00032876,8]
[391836849,1760899841946,-151.0,0.00032876,30]
[391836850,1760899841955,-151.0,0.00032876,30]
[391836851,1760899841966,-500.0,0.00032876,8]
[391836852,1760899841977,-500.0,0.00032876,8]
[391836853,1760899841987,-500.0,0.00032876,8]
[391836854,1760899842000,-500.0,0.00032876,8]
[391836855,1760899842012,-500.0,0.00032876,8]
[391836856,1760899842022,-500.0,0.00032876,8]
[391836857,1760899842034,-498.18683315,0.00032876,8]
[391836858,1760899842045,-507.11381038,0.00032876,8]
[391836859,1760899842055,-500.0,0.00032876,8]
[391836860,1760899842064,-504.95326092,0.00032876,8]
[391836861,1760899842075,-500.0,0.00032876,8]
[391836862,1760899842085,-506.89281219,0.00032876,8]
[391836863,1760899842095,-500.0,0.00032876,8]
[391836864,1760899842104,-500.0,0.00032876,8]
[391836865,1760899842114,-505.68577611,0.00032876,8]
[391836866,1760899842123,-505.52009037,0.00032876,8]
[391836867,1760899842132,-500.0,0.00032876,8]
[391836868,1760899842142,-500.0,0.00032876,8]
[391836869,1760899842151,-500.0,0.00032876,8]
[391836870,1760899842162,-503.58971946,0.00032876,8]
[391836871,1760899842171,-516.74412494,0.00032876,8]
[391836872,1760899842181,-500.0,0.00032876,8]
[391836873,1760899842194,-500.0,0.00032876,8]
[391836874,1760899842204,-500.0,0.00032876,8]
[391836875,1760899842214,-501.57804207,0.00032876,8]
[391836876,1760899842223,-500.0,0.00032876,8]
[391836877,1760899842236,-500.0,0.00032876,8]
[391836878,1760899842245,-500.0,0.00032876,8]
[391836879,1760899842255,-500.49611646,0.00032876,8]
[391836880,1760899842264,-500.0,0.00032876,8]
[391836881,1760899842274,-500.0,0.00032876,8]
[391836882,1760899842284,-500.0,0.00032876,8]
[391836883,1760899842294,-504.52965633,0.00032876,8]
[391836884,1760899842306,-504.48652375,0.00032876,8]
[391836885,1760899842316,-500.0,0.00032876,8]
[391836886,1760899842326,-500.0,0.00032876,8]
[391836887,1760899842335,-500.0,0.00032876,8]
[391836888,1760899842345,-191.27945805,0.00032876,8]
[391836889,1760899842355,-500.0,0.00032876,8]
[391836890,1760899842365,-3299.640341,0.00032876,30]
[391836891,1760899842374,-500.0,0.00032876,8]
[391836892,1760899842384,-559.62372314,0.00032876,8]
[391836893,1760899842395,-500.0,0.00032876,8]
[391836894,1760899842404,-3299.640341,0.00032876,30]
[391836895,1760899842414,-3299.640341,0.00032876,30]
[391836896,1760899842423,-500.0,0.00032876,8]
[391836897,1760899842432,-500.0,0.00032876,8]
[391836898,1760899842442,-613.01327538,0.00032876,8]
[391836899,1760899842451,-500.0,0.00032876,8]
[391836900,1760899842460,-500.0,0.00032876,8]
[391836901,1760899842470,-3299.640341,0.00032876,30]
[391836902,1760899842479,-3299.640341,0.00032876,30]
[391836903,1760899842489,-3299.640341,0.00032876,30]
[391836904,1760899842499,-3299.640341,0.00032876,30]
[391836905,1760899842509,-3299.640341,0.00032876,30]
[391836906,1760899842519,-3299.640341,0.00032876,30]
[391836907,1760899842530,-500.0,0.00032876,8]
[391836909,1760899842540,-3299.640341,0.00032876,30]
[391836910,1760899842550,-3299.640341,0.00032876,30]
[391836911,1760899842560,-3299.640341,0.00032876,30]
[391836912,1760899842570,-500.0,0.00032876,8]
[391836913,1760899842580,-500.0,0.00032876,8]
[391836914,1760899842590,-216.7339236,0.00032876,8]
[391836915,1760899842790,-283.2660764,0.00032876,8]
[391836916,1760899842800,-500.0,0.00032876,8]
[391836917,1760899842810,-500.0,0.00032876,8]
[391836918,1760899842820,-594.20208735,0.00032876,8]
[391836919,1760899842831,-500.0,0.00032876,8]
[391836920,1760899842842,-500.0,0.00032876,8]
[391836921,1760899842852,-501.47459572,0.00032876,8]
[391836922,1760899842864,-239.87244053,0.00032876,8]
[391836923,1760899842877,-260.12755947,0.00032876,8]
[391836924,1760899842886,-500.0,0.00032876,8]
[391836925,1760899842896,-500.0,0.00032876,8]
[391836926,1760899842906,-11.2425694,0.00032876,8]
[391836933,1760899843152,-372.10756581,0.00032775,2]
[391836935,1760899843162,-127.89243419,0.00032876,8]
[391836936,1760899843173,-360.86499641,0.00032876,8]
[391836937,1760899843182,-454.67545194,0.00032876,8]
[391836938,1760899843197,-55.77238166,0.00032876,8]
[391836939,1760899843206,-500.0,0.00032876,8]
[391836940,1760899843215,-500.0,0.00032876,8]
[391836941,1760899843224,-500.0,0.00032876,8]
[391836942,1760899843234,-500.0,0.00032876,8]
[391836943,1760899843243,-463.43017585,0.00032876,8]
[391836944,1760899843252,-500.0,0.00032876,8]
[391836945,1760899843262,-500.0,0.00032876,8]
[391836946,1760899843271,-500.0,0.00032876,8]
[391836947,1760899843280,-500.0,0.00032876,8]
[391836948,1760899843289,-506.15621123,0.00032876,8]
[391836949,1760899843301,-802.82889716,0.00032876,8]
[391836950,1760899843313,-436.75110284,0.00032876,8]
[391836951,1760899843324,-500.0,0.00032876,8]
[391836952,1760899843335,-500.0,0.00032876,8]
[391836953,1760899843346,-944.57,0.00032876,8]
[391836954,1760899843356,-500.0,0.00032876,8]
[391836955,1760899843366,-500.0,0.00032876,8]
[391836956,1760899843375,-564.07291035,0.00032876,8]
[391836957,1760899843385,-500.0,0.00032876,8]
[391836958,1760899843395,-141.8618346,0.00032876,8]
[391836959,1760899843407,-358.1381654,0.00032876,8]
[391836960,1760899843416,-500.0,0.00032876,8]
[391836961,1760899843425,-559.99651251,0.00032876,8]
[391836962,1760899843435,-500.0,0.00032876,8]
[391836963,1760899843444,-261.55532209,0.00032876,8]
[391836964,1760899843457,-247.37640334,0.00032876,8]
[391836965,1760899843466,-547.4554873,0.00032876,8]
[391836966,1760899843476,-14.12269586,0.00032876,8]
[391836967,1760899845833,-500.0,0.00032775,2]
[391836968,1760899845842,-500.0,0.00032775,2]
[391836969,1760899845855,-536.66009597,0.00032775,2]
[391836970,1760899845865,-205.80293765,0.00032775,2]
[391836971,1760899845874,-500.0,0.00032775,2]
[391836972,1760899845883,-500.0,0.00032775,2]
[391836973,1760899845894,-332.52023769,0.00032775,2]
[391836974,1760899845904,-1130.83730414,0.00032876,8]
[391836975,1760899845913,-486.98593319,0.00032876,8]
[391836976,1760899845923,-500.0,0.00032876,8]
[391836977,1760899845932,-500.0,0.00032876,8]
[391836978,1760899845941,-507.6674994,0.00032876,8]
[391836979,1760899845951,-500.0,0.00032876,8]
[391836980,1760899845960,-500.0,0.00032876,8]
[391836981,1760899846106,-90.69618074,0.00032876,8]
[391836983,1760899846160,-153.0,0.00031604,2]
[391836984,1760899846170,-212.92329624,0.00032876,8]
[391836986,1760899862173,200.0,0.00034189,120]
[391836987,1760899925711,219.10746129,0.00034189,30]
[391836988,1760899927728,416.46283289,0.00034189,30]
[391836989,1760899931586,458.56174577,0.00034189,30]
[391836990,1760899934244,151.0,0.00034189,30]
[391836991,1760899935157,151.0,0.00034189,30]
[391836992,1760899935526,151.0,0.00034189,30]
[391836993,1760899936271,151.0,0.00034189,30]
[391836994,1760899936901,151.0,0.00034189,30]
[391836995,1760899937537,151.0,0.00034189,30]
[391836996,1760899938178,151.0,0.00034189,30]
[391836997,1760899938796,151.0,0.00034189,30]
[391836998,1760899939460,151.0,0.00034189,30]
[391836999,1760899940080,151.0,0.00034189,30]
[391837000,1760899940788,151.0,0.00034189,30]
[391837001,1760899941385,151.0,0.00034189,30]
[391837002,1760899942062,151.0,0.00034189,30]
[391837003,1760899942518,200.0,0.00034189,30]
[391837004,1760899942744,151.0,0.00034189,30]
[391837005,1760899942853,300.0,0.00034189,30]
[391837006,1760899943367,151.0,0.00034189,30]
[391837007,1760899944217,151.0,0.00034189,30]
[391837008,1760899944838,151.0,0.00034189,30]
[391837009,1760899945563,151.0,0.00034189,30]
[391837010,1760899946093,151.0,0.00034189,30]
[391837011,1760899946750,151.0,0.00034189,30]
[391837012,1760899970479,214.6,0.00034189,30]
[391837013,1760899970917,214.6,0.00034189,30]
[391837017,1760900163158,200.0,0.00034191,120]
[391837019,1760900227689,151.0,0.00034191,30]
[391837020,1760900228302,151.0,0.00034191,30]
[391837021,1760900229121,151.0,0.00034191,30]
[391837022,1760900243018,200.0,0.00034191,30]
[391837023,1760900244280,300.0,0.00034191,30]
[391837030,1760900437331,358.92938,0.00034191,60]
[391837031,1760900437600,2745.50821,0.00034191,60]
[391837032,1760900437718,358.92938,0.00034191,60]
[391837033,1760900438010,2745.50821,0.00034191,60]
[391837034,1760900438098,358.92938,0.00034191,60]
[391837035,1760900438375,2745.50821,0.00034191,60]
[391837036,1760900438478,358.92938,0.00034191,60]
[391837037,1760900438742,2745.50821,0.00034191,60]
[391837038,1760900438851,358.92938,0.00034191,60]
[391837039,1760900439118,2745.50821,0.00034191,60]
[391837040,1760900460660,200.0,0.00034191,120]
[391837042,1760900542880,200.0,0.00034191,30]
[391837043,1760900543548,300.0,0.00034191,30]
[391837044,1760900565236,150.0,0.00034191,30]
[391837047,1760900597340,2902.12920572,0.00034191,120]
[391837062,1760900622047,1589.18629701,0.00034191,120]
[391837084,1760900760919,200.0,0.00034191,120]
[391837086,1760900844992,200.0,0.00034191,30]
[391837087,1760900846200,300.0,0.00034191,30]
[391837101,1760901031938,-151.0,0.00016585,2]
[391837102,1760901031948,-300.0,0.00021018,2]
[391837103,1760901031960,-1142.66218963,0.00023,2]
[391837104,1760901032182,-475.82771539,0.00023037,2]
[391837105,1760901032192,-1142.66218963,0.000233,2]
[391837106,1760901032202,-1200.0,0.00023498,2]
[391837108,1760901032213,-1142.66218963,0.000235,2]
[391837110,1760901032222,-300.0,0.00023699,2]
[391837112,1760901032232,-300.0,0.00023699,2]
[391837114,1760901032242,-1142.66218963,0.000237,2]
[391837116,1760901032253,-1142.66218963,0.00024,2]
[391837118,1760901032263,-1142.66218963,0.000242,2]
[391837119,1760901032274,-1142.66218963,0.000245,2]
[391837122,1760901032289,-1142.66218963,0.000247,2]
[391837123,1760901032298,-1142.66218963,0.000249,2]
[391837125,1760901032308,-1142.66218963,0.000252,2]
[391837127,1760901032317,-420.0,0.00025708,2]
[391837128,1760901032327,-378.0,0.00027888,2]
[391837129,1760901032337,-227.66664948,0.00028253,4]
[391837130,1760901032345,-166.66,0.00029201,30]
[391837131,1760901032355,-1432.67,0.00029368,2]
[391837132,1760901032367,-2305.87,0.00029539,2]
[391837134,1760901032377,-2534.87,0.00029563,2]
[391837136,1760901032386,-5000.0,0.00029566,2]
[391837138,1760901032395,-150.0,0.00029692,2]
[391837140,1760901032405,-4185.2,0.00029692,2]
[391837142,1760901032414,-166.66,0.00029816,30]
[391837145,1760901032423,-630.15,0.00029884,2]
[391837147,1760901032432,-1852.42,0.00029921,2]
[391837149,1760901032441,-166.66,0.00030431,30]
[391837150,1760901032451,-892.796,0.00030431,26]
[391837151,1760901032461,-630.15,0.00031005,2]
[391837152,1760901032470,-166.66,0.00031045,30]
[391837153,1760901032483,-166.66,0.0003166,30]
[391837154,1760901032493,-1000.0,0.00031702,2]
[391837155,1760901032502,-750.18,0.0003202,120]
[391837156,1760901032512,-630.15,0.00032126,2]
[391837157,1760901032521,-168.31,0.00032178,2]
[391837158,1760901032530,-166.66,0.00032275,30]
[391837159,1760901032540,-157.79104425,0.0003255,2]
[391837160,1760901032549,-168.31,0.00032556,2]
[391837161,1760901032559,-890.08130565,0.00032622,2]
[391837162,1760901032568,-546.93,0.00032656,2]
[391837163,1760901032577,-4054.7679,0.00032766,2]
[391837164,1760901032587,-6616.6414,0.00032766,2]
[391837165,1760901032596,-8897.88576055,0.00032766,2]
[391837166,1760901032605,-1699.88148468,0.00032776,2]
[391837167,1760901032615,-165.50795503,0.00032776,15]
[391837168,1760901032624,-7231.8658874,0.00032852,2]
[391837169,1760901032634,-1758.1710709,0.00032852,2]
[391837170,1760901032643,-2234.12,0.00032856,2]
[391837171,1760901032652,-151.0,0.00032863,14]
[391837172,1760901032662,-500.0,0.00032865,2]
[391837173,1760901032672,-215.83768598,0.00032865,2]
[391837174,1760901032682,-500.0,0.00032865,8]
[391837175,1760901032691,-500.0,0.00032865,8]
[391837176,1760901032701,-500.0,0.00032865,8]
[391837177,1760901032713,-51472.04816703,0.00032866,3]
[391837178,1760901032729,-323.44091325,0.00032866,3]
[391837179,1760901032741,-1741.4297148,0.00032866,3]
[391837180,1760901032768,-266.98937867,0.00032866,3]
[391837181,1760901032793,-5057.02539024,0.00032866,3]
[391837184,1760901037856,-452.36987323,0.00032865,2]
[391837185,1760901037873,-500.0,0.00032865,2]
[391837186,1760901037883,-312.72754398,0.00032865,2]
[391837187,1760901037892,-559.34922306,0.00032865,2]
[391837188,1760901037901,-473.64391688,0.00032865,2]
[391837189,1760901037911,-500.0,0.00032865,2]
[391837190,1760901037921,-21855.03541465,0.00032866,3]
[391837191,1760901037959,-10968.69204931,0.00032866,3]
[391837192,1760901038013,-782.54342496,0.00032866,3]
[391837193,1760901038119,-11473.691325,0.00032866,3]
[391837227,1760901039899,-48484.12546131,0.00032866,3]
[391837228,1760901039911,-21294.75369178,0.00032866,3]
[391837229,1760901039920,-7826.05478745,0.00032866,3]
[391837230,1760901040004,-2558.4,0.00032866,3]
[391837231,1760901040058,-1330.14391159,0.00032866,3]
[391837232,1760901040070,-1094.5459999,0.00032866,3]
[391837233,1760901040115,-1202.799999,0.00032866,3]
[391837234,1760901040126,-10005.0,0.00032866,3]
[391837235,1760901040168,-4154.49893401,0.00032866,3]
[391837267,1760901043050,-53102.74998495,0.00032866,3]
[391837268,1760901043060,-2234.12,0.00032866,2]
[391837269,1760901043070,-500.0,0.00032873,5]
[391837270,1760901043079,-500.0,0.00032873,5]
[391837271,1760901043088,-500.0,0.00032873,2]
[391837272,1760901043097,-500.0,0.00032873,5]
[391837273,1760901043107,-500.0,0.00032873,5]
[391837274,1760901043116,-500.0,0.00032873,5]
[391837275,1760901043125,-500.0,0.00032873,5]
[391837276,1760901043135,-500.0,0.00032873,5]
[391837277,1760901043144,-500.0,0.00032873,5]
[391837278,1760901043154,-155.0,0.00032875,2]
[391837279,1760901043163,-515.25915557,0.00032875,8]
[391837280,1760901043172,-500.0,0.00032875,8]
[391837281,1760901043182,-500.0,0.00032875,8]
[391837282,1760901043191,-500.0,0.00032875,8]
[391837283,1760901043201,-500.0,0.00032875,8]
[391837284,1760901043210,-500.0,0.00032875,8]
[391837285,1760901043220,-500.0,0.00032875,8]
[391837286,1760901043230,-500.0,0.00032875,7]
[391837287,1760901043239,-500.0,0.00032875,2]
[391837288,1760901043248,-500.0,0.00032875,8]
[391837289,1760901043258,-500.0,0.00032875,8]
[391837291,1760901043267,-500.0,0.00032875,8]
[391837293,1760901043277,-500.0,0.00032875,8]
[391837295,1760901043286,-500.0,0.00032875,8]
[391837297,1760901043296,-737.53,0.00032875,8]
[391837299,1760901043305,-500.0,0.00032875,8]
[391837302,1760901043315,-507.74176846,0.00032875,8]
[391837304,1760901043324,-500.0,0.00032875,8]
[391837305,1760901043334,-500.0,0.00032875,8]
[391837306,1760901043344,-500.0,0.00032875,8]
[391837307,1760901043353,-6286.5110001,0.00032876,4]
[391837308,1760901043363,-1306.069427,0.00032876,8]
[391837309,1760901043372,-255.888322,0.00032876,8]
[391837310,1760901043382,-879.189762,0.00032876,8]
[391837311,1760901043391,-1378.819347,0.00032876,8]
[391837312,1760901043401,-1613.021271,0.00032876,8]
[391837313,1760901043411,-7716.287027,0.00032876,8]
[391837314,1760901043420,-500.0,0.00032876,8]
[391837315,1760901043429,-500.0,0.00032876,8]
[391837317,1760901043439,-358.04768138,0.00032876,8]
[391837318,1760901043449,-537.04161328,0.00032876,8]
[391837320,1760901043458,-468.88,0.00032876,8]
[391837321,1760901043468,-500.33519733,0.00032876,8]
[391837322,1760901043477,-400.0,0.00032876,8]
[391837323,1760901043486,-648.21187566,0.00032876,8]
[391837324,1760901043495,-500.0,0.00032876,8]
[391837325,1760901043505,-626.9,0.00032876,8]
[391837326,1760901043514,-500.0,0.00032876,8]
[391837327,1760901043524,-500.0,0.00032876,8]
[391837328,1760901043533,-500.0,0.00032876,8]
[391837329,1760901043542,-500.0,0.00032876,8]
[391837330,1760901043552,-500.0,0.00032876,8]
[391837331,1760901043562,-409.8925451,0.00032876,8]
[391837332,1760901043571,-500.0,0.00032876,8]
[391837333,1760901043580,-500.0,0.00032876,8]
[391837334,1760901043589,-509.34148134,0.00032876,8]
[391837335,1760901043598,-507.32027123,0.00032876,8]
[391837336,1760901043607,-390.0,0.00032876,8]
[391837337,1760901043617,-500.0,0.00032876,8]
[391837338,1760901043626,-568.64,0.00032876,8]
[391837339,1760901043636,-648.52857675,0.00032876,8]
[391837340,1760901043645,-500.0,0.00032876,8]
[391837341,1760901043654,-500.0,0.00032876,8]
[391837342,1760901043827,-500.0,0.00032876,8]
[391837343,1760901043838,-500.0,0.00032876,8]
[391837344,1760901043847,-500.0,0.00032876,8]
[391837345,1760901043857,-500.0,0.00032876,8]
[391837346,1760901043867,-500.0,0.00032876,8]
[391837347,1760901043879,-500.0,0.00032876,8]
[391837348,1760901043888,-618.80919512,0.00032876,8]
[391837349,1760901043898,-506.60356767,0.00032876,8]
[391837350,1760901043909,-617.84138758,0.00032876,8]
[391837351,1760901043919,-500.0,0.00032876,8]
[391837352,1760901043929,-1226.55,0.00032876,8]
[391837353,1760901043940,-500.0,0.00032876,8]
[391837354,1760901043949,-500.0,0.00032876,8]
[391837355,1760901043959,-500.0,0.00032876,8]
[391837356,1760901043968,-977.91,0.00032876,8]
[391837357,1760901043978,-500.0,0.00032876,8]
[391837358,1760901043988,-500.0,0.00032876,2]
[391837359,1760901043999,-500.0,0.00032876,8]
[391837360,1760901044010,-500.0,0.00032876,8]
[391837361,1760901044022,-500.0,0.00032876,8]
[391837362,1760901044032,-500.0,0.00032876,8]
[391837363,1760901044042,-500.0,0.00032876,8]
[391837364,1760901044052,-500.0,0.00032876,8]
[391837365,1760901044062,-505.09039308,0.00032876,8]
[391837366,1760901044071,-500.0,0.00032876,8]
[391837367,1760901044080,-417.84095092,0.00032876,8]
[391837368,1760901044089,-500.0,0.00032876,8]
[391837369,1760901044099,-500.0,0.00032876,8]
[391837370,1760901044108,-500.0,0.00032876,8]
[391837371,1760901044119,-516.24,0.00032876,8]
[391837372,1760901044130,-500.0,0.00032876,8]
[391837373,1760901044140,-500.0,0.00032876,8]
[391837374,1760901044149,-412.24908463,0.00032876,8]
[391837375,1760901044159,-506.96691241,0.00032876,8]
[391837376,1760901044169,-500.0,0.00032876,8]
[391837377,1760901044179,-1091.36,0.00032876,8]
[391837378,1760901044188,-500.0,0.00032876,8]
[391837379,1760901044198,-589.50824909,0.00032876,8]
[391837380,1760901044207,-500.0,0.00032876,7]
[391837381,1760901044217,-500.0,0.00032876,8]
[391837382,1760901044226,-500.0,0.00032876,8]
[391837383,1760901044237,-277.62609802,0.00032876,8]
[391837384,1760901044247,-505.21632994,0.00032876,8]
[391837385,1760901044257,-500.0,0.00032876,8]
[391837386,1760901044267,-500.0,0.00032876,8]
[391837387,1760901044276,-500.0,0.00032876,8]
[391837388,1760901044286,-500.0,0.00032876,8]
[391837389,1760901044296,-500.0,0.00032876,8]
[391837390,1760901044305,-500.0,0.00032876,8]
[391837391,1760901044316,-500.0,0.00032876,8]
[391837392,1760901044325,-500.0,0.00032876,8]
[391837393,1760901044335,-514.75929399,0.00032876,8]
[391837394,1760901044346,-500.0,0.00032876,8]
[391837395,1760901044356,-901.85,0.00032876,8]
[391837396,1760901044365,-246.02990994,0.00032876,8]
[391837397,1760901044376,-500.0,0.00032876,8]
[391837398,1760901044385,-500.0,0.00032876,8]
[391837399,1760901044395,-500.0,0.00032876,8]
[391837400,1760901044404,-500.0,0.00032876,8]
[391837401,1760901044414,-500.0,0.00032876,8]
[391837402,1760901044423,-500.0,0.00032876,8]
[391837403,1760901044436,-500.0,0.00032876,8]
[391837404,1760901044446,-500.0,0.00032876,8]
[391837405,1760901044455,-549.72968035,0.00032876,8]
[391837406,1760901044465,-500.0,0.00032876,8]
[391837407,1760901044474,-483.19503796,0.00032876,8]
[391837408,1760901044484,-500.0,0.00032876,8]
[391837409,1760901044494,-634.36256318,0.00032876,8]
[391837410,1760901044503,-500.0,0.00032876,8]
[391837411,1760901044513,-500.0,0.00032876,8]
[391837412,1760901044522,-649.33560436,0.00032876,8]